Workbook

Sheet 2024年2月
A1: 陆 丰 市 2024 年 2 月 财 政 预 算 收 入 完 成 情 况 表
A2: 2024-02-29 | L2: 单位：万元
B3: 年 度 | C3: 累 计 | D3: 占 年 | E3: 上 年 | F3: 比上年 | G3: 比上年 | H3: 本 月 | I3: 上 年 | J3: 比上年 | K3: 比上年
A4: 收 入 项 目 | B4: 预 算 | C4: 完 成 | D4: 预 算 | E4: 同 期 | F4: 同期增 | G4: 同期增 | H4: 完 成 | I4: 同 月 | J4: 同月增 | K4: 同月增 | L4: 备 注
B5: 数 | C5: 数 | D5: % | E5: 完 成 | F5: 减额 | G5: (减)% | H5: 数 | I5: 完 成 | J5: 减额 | K5: (减)%
A6: （一）税收收入 | B6: =SUM(B7:B20) -> 0 | C6: =SUM(C7:C20) -> 8,496 | D6: =SUM(D7:D20) ->  | E6: 10,471 | F6: =C6-E6 -> -1,975 | G6: =F6/E6*100 -> -18.9 | H6: =H7+H8+H9+H10+H11+H12+H13+H14+H15+H16+H17+H18+H19+H20 -> 3,429 | I6: 6,328 | J6: =H6-I6 -> -2,899 | K6: =J6/I6*100 -> -45.8
A7: 1、增值税 | C7: 2,903 | D7: =C7/B7*100 ->  | E7: 2,783 | F7: 120 | G7: 4.3 | H7: 1,243 | I7: 1,234 | J7: 9 | K7: 0.7
A8: 2、企业所得税 | C8: 1,170 | E8: 658 | F8: 512 | G8: 77.8 | H8: 13 | I8: 47 | J8: -34 | K8: -72.3
A9: 3、个人所得税 | C9: 386 | E9: 366 | F9: 20 | G9: 5.5 | H9: 87 | I9: 150 | J9: -63 | K9: -42.0
A10: 4、资源税 | C10: 14 | E10: 11 | F10: 3 | G10: 27.3 | H10: 1 | J10: 1
A11: 5、城市维护建设税 | C11: 999 | E11: 1,031 | F11: -32 | G11: -3.1 | H11: 572 | I11: 576 | J11: -4 | K11: =J11/I11*100 -> -0.7
A12: 6、房产税 | C12: 132 | E12: 123 | F12: 9 | G12: 7.3 | H12: 22 | I12: 16 | J12: 6 | K12: 37.5
A13: 7、印花税 | C13: 309 | E13: 253 | F13: 56 | G13: 22.1 | H13: 63 | I13: 62 | J13: 1 | K13: 1.6
A14: 8、城镇土地使用税 | C14: 117 | E14: 36 | F14: 81 | G14: 225.0 | H14: 19 | I14: 14 | J14: 5 | K14: 35.7
A15: 9、土地增值税 | C15: 436 | E15: 285 | F15: 151 | G15: 53.0 | H15: 187 | I15: 247 | J15: -60 | K15: -24.3
A16: 10、车船税 | C16: 412 | E16: 360 | F16: 52 | G16: 14.4 | H16: 218 | I16: 203 | J16: 15 | K16: 7.4
A17: 11、环境保护税 | C17: 58 | E17: 48 | F17: 10 | G17: 20.8 | H17: 0 | J17: 0
A18: 12、耕地占用税 | C18: 755 | E18: 3,266 | F18: -2,511 | G18: -76.9 | H18: 755 | I18: 3,266 | J18: -2,511 | K18: =J18/I18*100 -> -76.9
A19: 13、契 税 | C19: 805 | E19: 1,251 | F19: -446 | G19: -35.7 | H19: 249 | I19: 513 | J19: -264 | K19: -51.5
A20: 14、其他税收收入 | C20: 0 | F20: 0 | H20: 0 | J20: 0
A21: （二）非税收入 | B21: =SUM(B22:B29) -> 0 | C21: =SUM(C22:C29) -> 6,988 | D21: =SUM(D22:D29) ->  | E21: =E22+E23+E24+E25+E26+E27+E28+E29 -> 11,051 | F21: -4,063 | G21: =F21/E21*100 -> -36.8 | H21: 2,652 | I21: 6,773 | J21: -4,121 | K21: -60.8
A22: 1、专项收入 | C22: 669 | D22: =C22/B22*100 ->  | E22: 728 | F22: -59 | G22: -8.1 | H22: 373 | I22: 405 | J22: -32 | K22: -7.9
A23: 2、行政事业性收费收入 | C23: 2,333 | E23: 5,481 | F23: -3,148 | G23: -57.4 | H23: 761 | I23: 3,767 | J23: -3,006 | K23: -79.8
A24: 3、罚没收入 | C24: 2,668 | E24: 2,286 | F24: 382 | G24: 16.7 | H24: 1,319 | I24: 1,329 | J24: -10 | K24: -0.8
A25: 4、国有资源（资产）有偿使用收入 | C25: 784 | E25: 158 | F25: 626 | G25: 396.2 | H25: 79 | I25: 51 | J25: 28 | K25: 54.9
A26: 5、政府住房基金收入 | C26: 160 | E26: 105 | F26: 55 | G26: 52.4 | H26: 0 | I26: 105 | J26: -105 | K26: -100.0
A27: 6、捐赠收入 | C27: 138 | E27: 1,142 | F27: -1,004 | G27: -87.9 | H27: 70 | I27: 246 | J27: -176 | K27: -71.5
A28: 7、其他收入 | C28: 236 | E28: 1,146 | F28: -910 | G28: -79.4 | H28: 50 | I28: 870 | J28: -820 | K28: -94.3
A29: 8、国有资本经营收入 | E29: 5 | F29: -5 | G29: -100.0 | H29: 0 | J29: 0
A30: 一、一般公共预算收入 | B30: =B6+B21 -> 0 | C30: =C6+C21 -> 15,484 | D30: =C30/B30*100 ->  | E30: 21,522 | F30: -6,038 | G30: -28.1 | H30: 6,081 | I30: 13,101 | J30: -7,020 | K30: =J30/I30*100 -> -53.6
A31: 二、政府性基金预算收入小计 | C31: 2,180 | E31: 9,565 | F31: -7,385 | G31: -77.2 | H31: 645 | I31: 469 | J31: 176 | K31: 37.5
A32: 其中：国有土地使用权出让收入 | C32: 785 | E32: 8,609 | F32: -7,824 | G32: -90.9 | H32: 422 | I32: -381 | J32: 803 | K32: -210.8
A33: 三、国有资本经营收入小计 | F33: 0 | J33: 0
A34: 收入合计 | B34: =B30+B31+B33 -> 0 | C34: =C30+C31+C33 -> 17,664 | E34: 31,087 | F34: -13,423 | G34: =F34/E34*100 -> -43.2 | H34: 6,726 | I34: 13,570 | J34: -6,844 | K34: =J34/I34*100 -> -50.4
L35: 陆丰市财政局国库股
